[Event "Titled Tuesday Blitz May 30 Late 2023"]
[White "Maksimovic, Bojan"]
[Black "Muradli, Mahammad"]
[WhiteFideId "14408120"]
[BlackFideId "13409301"]
[WhiteElo "2468"]
[BlackElo "2558"]
[Result "1-0"]
[Round "09"]
[TimeControl "180+2"]
[Date "2023.05.31"]
[WhiteClock "0:00:18"]
[BlackClock "0:00:02"]

1. Nf3 {[%clk 0:03:00]}  g6 {[%clk 0:02:56]} 2. g3 {[%clk 0:03:00]}  Bg7 {[%clk 0:02:57]} 3. Bg2 {[%clk 0:03:00]}  c5 {[%clk 0:02:57]} 4. O-O {[%clk 0:03:00]}  Nc6 {[%clk 0:02:58]} 5. c3 {[%clk 0:03:01]}  d5 {[%clk 0:02:58]} 6. d3 {[%clk 0:03:01]}  e5 {[%clk 0:02:57]} 7. Nbd2 {[%clk 0:03:01]}  Nge7 {[%clk 0:02:57]} 8. e4 {[%clk 0:03:00]}  O-O {[%clk 0:02:58]} 9. Re1 {[%clk 0:03:01]}  Re8 {[%clk 0:02:58]} 10. exd5 {[%clk 0:03:00]}  Nxd5 {[%clk 0:02:58]} 11. Nc4 {[%clk 0:02:58]}  h6 {[%clk 0:02:50]} 12. a4 {[%clk 0:02:58]}  b6 {[%clk 0:02:42]} 13. a5 {[%clk 0:02:48]}  b5 {[%clk 0:02:33]} 14. Ne3 {[%clk 0:02:48]}  Be6 {[%clk 0:02:34]} 15. a6 {[%clk 0:02:45]}  Rc8 {[%clk 0:02:29]} 16. Nxd5 {[%clk 0:02:44]}  Bxd5 {[%clk 0:02:30]} 17. Be3 {[%clk 0:02:44]}  Qd6 {[%clk 0:02:20]} 18. Nd2 {[%clk 0:02:20]}  Bxg2 {[%clk 0:02:10]} 19. Kxg2 {[%clk 0:02:21]}  Qxd3 {[%clk 0:01:56]} 20. Bxc5 {[%clk 0:02:21]}  Red8 {[%clk 0:01:21]} 21. Ne4 {[%clk 0:02:12]}  Qc4 {[%clk 0:01:20]} 22. Qe2 {[%clk 0:02:11]}  Rd3 {[%clk 0:01:12]} 23. b3 {[%clk 0:02:02]}  Qd5 {[%clk 0:01:10]} 24. Rad1 {[%clk 0:02:00]}  Rxd1 {[%clk 0:00:55]} 25. Qxd1 {[%clk 0:02:00]}  Qe6 {[%clk 0:00:55]} 26. Qd6 {[%clk 0:01:22]}  Qf5 {[%clk 0:00:49]} 27. Qd5 {[%clk 0:01:17]}  Bf8 {[%clk 0:00:18]} 28. Bxf8 {[%clk 0:01:16]}  Kxf8 {[%clk 0:00:19]} 29. Qxb5 {[%clk 0:00:57]}  Qd7 {[%clk 0:00:14]} 30. Qb7 {[%clk 0:00:57]}  Rc7 {[%clk 0:00:14]} 31. Qb5 {[%clk 0:00:53]}  Kg7 {[%clk 0:00:14]} 32. Kg1 {[%clk 0:00:44]}  h5 {[%clk 0:00:13]} 33. h4 {[%clk 0:00:43]}  Qe6 {[%clk 0:00:11]} 34. b4 {[%clk 0:00:41]}  Ne7 {[%clk 0:00:09]} 35. Nc5 {[%clk 0:00:41]}  Qf5 {[%clk 0:00:06]} 36. Qe2 {[%clk 0:00:41]}  f6 {[%clk 0:00:04]} 37. Rd1 {[%clk 0:00:41]}  Kf7 {[%clk 0:00:02]} 38. Qc4+ {[%clk 0:00:41]}  Ke8 {[%clk 0:00:02]} 39. Kg2 {[%clk 0:00:26]}  Qg4 {[%clk 0:00:01]} 40. Qxg4 {[%clk 0:00:23]}  hxg4 {[%clk 0:00:02]} 41. Rd6 {[%clk 0:00:23]}  f5 {[%clk 0:00:03]} 42. Kf1 {[%clk 0:00:22]}  Kf7 {[%clk 0:00:02]} 43. Ke2 {[%clk 0:00:23]}  Ke8 {[%clk 0:00:02]} 44. Kd3 {[%clk 0:00:23]}  f4 {[%clk 0:00:02]} 45. Ke4 {[%clk 0:00:23]}  f3 {[%clk 0:00:01]} 46. Kxe5 {[%clk 0:00:21]}  Kf7 {[%clk 0:00:02]} 47. Rf6+ {[%clk 0:00:18]}  Kg7 {[%clk 0:00:02]} 48. Ne6+ {[%clk 0:00:18]} 1-0


[Site "https://www.chess.com"]

[Event "Titled Tuesday Blitz May 30 Late 2023"]
[White "Naroditsky, Daniel"]
[Black "Xiong, Jeffery"]
[WhiteFideId "2026961"]
[BlackFideId "2047640"]
[WhiteElo "2633"]
[BlackElo "2726"]
[Result "0-1"]
[Round "09"]
[TimeControl "180+2"]
[Date "2023.05.31"]
[WhiteClock "0:00:04"]
[BlackClock "0:01:06"]

1. e4 {[%clk 0:02:59]}  c5 {[%clk 0:03:00]} 2. c3 {[%clk 0:02:55]}  e6 {[%clk 0:03:00]} 3. Nf3 {[%clk 0:02:53]}  Nc6 {[%clk 0:02:58]} 4. d4 {[%clk 0:02:49]}  cxd4 {[%clk 0:02:57]} 5. cxd4 {[%clk 0:02:50]}  d5 {[%clk 0:02:58]} 6. e5 {[%clk 0:02:49]}  Nge7 {[%clk 0:02:58]} 7. Nbd2 {[%clk 0:02:34]}  Nf5 {[%clk 0:02:54]} 8. Bd3 {[%clk 0:02:26]}  Nfxd4 {[%clk 0:02:46]} 9. Nxd4 {[%clk 0:02:26]}  Nxd4 {[%clk 0:02:47]} 10. O-O {[%clk 0:02:27]}  Bd7 {[%clk 0:02:47]} 11. Qg4 {[%clk 0:02:25]}  Qb6 {[%clk 0:02:41]} 12. b3 {[%clk 0:02:16]}  h5 {[%clk 0:02:40]} 13. Qh3 {[%clk 0:02:11]}  Bb4 {[%clk 0:02:33]} 14. Nf3 {[%clk 0:02:07]}  Bc3 {[%clk 0:02:23]} 15. Rb1 {[%clk 0:02:00]}  Nxf3+ {[%clk 0:02:23]} 16. Qxf3 {[%clk 0:02:01]}  Bxe5 {[%clk 0:02:22]} 17. Re1 {[%clk 0:01:44]}  Qd6 {[%clk 0:02:19]} 18. h4 {[%clk 0:01:32]}  Rc8 {[%clk 0:02:18]} 19. Bd2 {[%clk 0:01:21]}  g6 {[%clk 0:02:11]} 20. Bg5 {[%clk 0:01:13]}  Bg7 {[%clk 0:02:08]} 21. Rbd1 {[%clk 0:00:53]}  O-O {[%clk 0:02:06]} 22. g4 {[%clk 0:00:54]}  hxg4 {[%clk 0:02:04]} 23. Qxg4 {[%clk 0:00:54]}  e5 {[%clk 0:02:04]} 24. Qg3 {[%clk 0:00:53]}  Qe6 {[%clk 0:02:00]} 25. Be2 {[%clk 0:00:47]}  d4 {[%clk 0:01:57]} 26. h5 {[%clk 0:00:39]}  Rc3 {[%clk 0:01:56]} 27. Rd3 {[%clk 0:00:35]}  Rfc8 {[%clk 0:01:52]} 28. h6 {[%clk 0:00:29]}  Bf6 {[%clk 0:01:52]} 29. Bd2 {[%clk 0:00:26]}  Rxd3 {[%clk 0:01:49]} 30. Bxd3 {[%clk 0:00:25]}  Qg4 {[%clk 0:01:48]} 31. Qxg4 {[%clk 0:00:25]}  Bxg4 {[%clk 0:01:48]} 32. f4 {[%clk 0:00:26]}  exf4 {[%clk 0:01:44]} 33. Bxf4 {[%clk 0:00:27]}  Kh7 {[%clk 0:01:24]} 34. Bc4 {[%clk 0:00:26]}  g5 {[%clk 0:01:22]} 35. Bd2 {[%clk 0:00:22]}  Kxh6 {[%clk 0:01:21]} 36. Kg2 {[%clk 0:00:15]}  Kg7 {[%clk 0:01:20]} 37. Rf1 {[%clk 0:00:15]}  Be6 {[%clk 0:01:19]} 38. Bd3 {[%clk 0:00:14]}  Be7 {[%clk 0:01:14]} 39. Be4 {[%clk 0:00:13]}  b6 {[%clk 0:01:09]} 40. Re1 {[%clk 0:00:14]}  a5 {[%clk 0:01:05]} 41. Bd3 {[%clk 0:00:14]}  Bb4 {[%clk 0:01:05]} 42. Bxb4 {[%clk 0:00:13]}  axb4 {[%clk 0:01:05]} 43. Re5 {[%clk 0:00:13]}  Rc5 {[%clk 0:01:05]} 44. Re2 {[%clk 0:00:12]}  Kf6 {[%clk 0:01:05]} 45. Kf2 {[%clk 0:00:12]}  Bf5 {[%clk 0:01:03]} 46. Bc4 {[%clk 0:00:11]}  b5 {[%clk 0:01:03]} 47. Bxf7 {[%clk 0:00:10]}  Kxf7 {[%clk 0:01:04]} 48. a4 {[%clk 0:00:08]}  bxa3 {[%clk 0:01:04]} 49. b4 {[%clk 0:00:09]}  Rc2 {[%clk 0:01:04]} 50. Kg1 {[%clk 0:00:03]}  Rxe2 {[%clk 0:01:04]} 51. Kf1 {[%clk 0:00:04]}  d3 {[%clk 0:01:05]} 52. Kg1 {[%clk 0:00:04]}  a2 {[%clk 0:01:06]} 0-1


[Site "https://www.chess.com"]

[Event "Titled Tuesday Blitz May 30 Late 2023"]
[White "Rosen, Eric"]
[Black "Demidov, Mikhail"]
[WhiteFideId "2032562"]
[BlackFideId "4197143"]
[WhiteElo "2331"]
[BlackElo "2500"]
[Result "0-1"]
[Round "09"]
[TimeControl "180+2"]
[Date "2023.05.31"]
[WhiteClock "0:00:02"]
[BlackClock "0:01:15"]

1. d4 {[%clk 0:03:00]}  g6 {[%clk 0:02:54]} 2. e4 {[%clk 0:03:00]}  Bg7 {[%clk 0:02:54]} 3. Nf3 {[%clk 0:03:01]}  d6 {[%clk 0:02:53]} 4. Bc4 {[%clk 0:03:01]}  e6 {[%clk 0:02:53]} 5. Bb3 {[%clk 0:02:58]}  h6 {[%clk 0:02:52]} 6. O-O {[%clk 0:02:58]}  a6 {[%clk 0:02:52]} 7. Re1 {[%clk 0:02:56]}  b6 {[%clk 0:02:53]} 8. c3 {[%clk 0:02:56]}  Bb7 {[%clk 0:02:53]} 9. Nbd2 {[%clk 0:02:56]}  Nd7 {[%clk 0:02:54]} 10. Nf1 {[%clk 0:02:57]}  Ne7 {[%clk 0:02:54]} 11. Ng3 {[%clk 0:02:58]}  Nf6 {[%clk 0:02:51]} 12. a4 {[%clk 0:02:56]}  Qd7 {[%clk 0:02:45]} 13. Bc2 {[%clk 0:02:56]}  Rd8 {[%clk 0:02:42]} 14. Qe2 {[%clk 0:02:56]}  Qc8 {[%clk 0:02:42]} 15. a5 {[%clk 0:02:39]}  b5 {[%clk 0:02:42]} 16. c4 {[%clk 0:02:24]}  bxc4 {[%clk 0:02:38]} 17. Qxc4 {[%clk 0:02:25]}  O-O {[%clk 0:02:37]} 18. Qe2 {[%clk 0:02:10]}  c5 {[%clk 0:02:34]} 19. Be3 {[%clk 0:02:08]}  cxd4 {[%clk 0:02:33]} 20. Nxd4 {[%clk 0:02:08]}  Qa8 {[%clk 0:02:30]} 21. f3 {[%clk 0:02:04]}  Rfe8 {[%clk 0:02:25]} 22. Qd2 {[%clk 0:02:00]}  e5 {[%clk 0:02:22]} 23. Nb3 {[%clk 0:01:44]}  d5 {[%clk 0:02:16]} 24. exd5 {[%clk 0:01:43]}  Nexd5 {[%clk 0:02:16]} 25. Nc5 {[%clk 0:01:25]}  e4 {[%clk 0:02:10]} 26. Nxb7 {[%clk 0:01:14]}  Qxb7 {[%clk 0:02:08]} 27. Ba4 {[%clk 0:01:15]}  Nxe3 {[%clk 0:01:57]} 28. Qxe3 {[%clk 0:01:09]}  Nd5 {[%clk 0:01:51]} 29. Qc5 {[%clk 0:00:50]}  Nf4 {[%clk 0:01:32]} 30. Rad1 {[%clk 0:00:38]}  Nd3 {[%clk 0:01:28]} 31. Rxd3 {[%clk 0:00:07]}  Rxd3 {[%clk 0:01:28]} 32. Qc2 {[%clk 0:00:08]}  Rc8 {[%clk 0:01:23]} 33. Qe2 {[%clk 0:00:05]}  Bd4+ {[%clk 0:01:20]} 34. Kh1 {[%clk 0:00:05]}  Re3 {[%clk 0:01:18]} 35. Qd1 {[%clk 0:00:04]}  Rxe1+ {[%clk 0:01:16]} 36. Qxe1 {[%clk 0:00:05]}  exf3 {[%clk 0:01:16]} 37. Qf1 {[%clk 0:00:02]}  fxg2+ {[%clk 0:01:16]} 38. Qxg2 {[%clk 0:00:02]}  Rc1+ {[%clk 0:01:15]} 39. Nf1 {[%clk 0:00:02]}  Rxf1# {[%clk 0:01:15]} 0-1


[Site "https://www.chess.com"]

[Event "Titled Tuesday Blitz May 30 Late 2023"]
[White "Lopez Mulet, Inigo"]
[Black "Ibarra Jerez, Jose Carlos"]
[WhiteFideId "22235620"]
[BlackFideId "2226332"]
[WhiteElo "2289"]
[BlackElo "2638"]
[Result "0-1"]
[Round "09"]
[TimeControl "180+2"]
[Date "2023.05.31"]
[WhiteClock "0:01:11"]
[BlackClock "0:01:17"]

1. d4 {[%clk 0:02:59]}  Nf6 {[%clk 0:03:00]} 2. c4 {[%clk 0:02:58]}  d6 {[%clk 0:03:00]} 3. Nc3 {[%clk 0:02:58]}  e5 {[%clk 0:03:01]} 4. d5 {[%clk 0:02:57]}  Nbd7 {[%clk 0:03:00]} 5. e4 {[%clk 0:02:51]}  Nc5 {[%clk 0:03:01]} 6. f3 {[%clk 0:02:51]}  a5 {[%clk 0:03:01]} 7. Be3 {[%clk 0:02:52]}  Nfd7 {[%clk 0:03:02]} 8. Qd2 {[%clk 0:02:52]}  Be7 {[%clk 0:03:03]} 9. O-O-O {[%clk 0:02:50]}  h6 {[%clk 0:03:03]} 10. Nh3 {[%clk 0:02:49]}  c6 {[%clk 0:03:02]} 11. g4 {[%clk 0:02:49]}  a4 {[%clk 0:03:02]} 12. Kb1 {[%clk 0:02:49]}  Qa5 {[%clk 0:03:02]} 13. Ne2 {[%clk 0:02:46]}  Qc7 {[%clk 0:02:36]} 14. Nf2 {[%clk 0:02:42]}  cxd5 {[%clk 0:02:32]} 15. cxd5 {[%clk 0:02:42]}  b5 {[%clk 0:02:31]} 16. Nd3 {[%clk 0:02:29]}  Nxd3 {[%clk 0:02:21]} 17. Qxd3 {[%clk 0:02:30]}  b4 {[%clk 0:02:21]} 18. Rc1 {[%clk 0:02:28]}  Qb8 {[%clk 0:02:13]} 19. Ng3 {[%clk 0:02:26]}  g6 {[%clk 0:02:09]} 20. Qb5 {[%clk 0:02:23]}  Bg5 {[%clk 0:02:05]} 21. Bxg5 {[%clk 0:01:45]}  hxg5 {[%clk 0:02:06]} 22. h3 {[%clk 0:01:43]}  Ke7 {[%clk 0:02:06]} 23. Rh2 {[%clk 0:01:43]}  Qxb5 {[%clk 0:02:01]} 24. Bxb5 {[%clk 0:01:43]}  Nc5 {[%clk 0:02:01]} 25. Rc4 {[%clk 0:01:32]}  Rb8 {[%clk 0:01:57]} 26. Bc6 {[%clk 0:01:26]}  Ba6 {[%clk 0:01:57]} 27. Rc1 {[%clk 0:01:26]}  Bd3+ {[%clk 0:01:55]} 28. Ka1 {[%clk 0:01:26]}  Nb3+ {[%clk 0:01:25]} 29. axb3 {[%clk 0:01:22]}  axb3 {[%clk 0:01:26]} 30. Rhc2 {[%clk 0:01:11]}  Ra8+ {[%clk 0:01:17]} 0-1


[Site "https://www.chess.com"]

[Event "Titled Tuesday Blitz May 30 Late 2023"]
[White "Rustemov, Alexander"]
[Black "reevecanada"]
[WhiteFideId "4119002"]
[WhiteElo "2885"]
[BlackElo "2509"]
[Result "1-0"]
[Round "09"]
[TimeControl "180+2"]
[Date "2023.05.31"]
[WhiteClock "0:00:48"]
[BlackClock "0:00:20"]

1. d4 {[%clk 0:02:57]}  d5 {[%clk 0:02:58]} 2. c4 {[%clk 0:02:55]}  c6 {[%clk 0:02:56]} 3. Nc3 {[%clk 0:02:55]}  Nf6 {[%clk 0:02:55]} 4. e3 {[%clk 0:02:55]}  e6 {[%clk 0:02:54]} 5. Nf3 {[%clk 0:02:56]}  Bd6 {[%clk 0:02:53]} 6. Qc2 {[%clk 0:02:56]}  Nbd7 {[%clk 0:02:50]} 7. Bd2 {[%clk 0:02:56]}  e5 {[%clk 0:02:49]} 8. cxd5 {[%clk 0:02:54]}  cxd5 {[%clk 0:02:49]} 9. Nb5 {[%clk 0:02:54]}  Bb8 {[%clk 0:02:21]} 10. Rc1 {[%clk 0:02:54]}  e4 {[%clk 0:02:19]} 11. Qxc8 {[%clk 0:02:48]}  exf3 {[%clk 0:02:18]} 12. Qxb7 {[%clk 0:02:47]}  Nb6 {[%clk 0:02:17]} 13. Ba5 {[%clk 0:02:30]}  O-O {[%clk 0:01:56]} 14. gxf3 {[%clk 0:02:28]}  Bd6 {[%clk 0:01:36]} 15. b3 {[%clk 0:02:16]}  Re8 {[%clk 0:01:26]} 16. Bh3 {[%clk 0:02:11]}  Kh8 {[%clk 0:01:22]} 17. Rg1 {[%clk 0:01:43]}  Bxh2 {[%clk 0:01:16]} 18. Rg2 {[%clk 0:01:40]}  Bf4 {[%clk 0:01:13]} 19. Nc7 {[%clk 0:01:24]}  Rc8 {[%clk 0:00:46]} 20. Bxc8 {[%clk 0:01:21]}  Bxe3 {[%clk 0:00:41]} 21. fxe3 {[%clk 0:01:18]}  Rxe3+ {[%clk 0:00:42]} 22. Kd2 {[%clk 0:01:18]}  Rxf3 {[%clk 0:00:39]} 23. Kc2 {[%clk 0:01:00]}  Nxc8 {[%clk 0:00:33]} 24. Kb1 {[%clk 0:00:57]}  h6 {[%clk 0:00:27]} 25. Ne6 {[%clk 0:00:49]}  Qxa5 {[%clk 0:00:21]} 26. Rxc8+ {[%clk 0:00:49]}  Ng8 {[%clk 0:00:20]} 27. Rxg8+ {[%clk 0:00:47]}  Kxg8 {[%clk 0:00:20]} 28. Qc8+ {[%clk 0:00:48]}  Kh7 {[%clk 0:00:20]} 29. Rxg7# {[%clk 0:00:48]} 1-0


[Site "https://www.chess.com"]

[Event "Titled Tuesday Blitz May 30 Late 2023"]
[White "Bashirli, Nail"]
[Black "Deac, Bogdan-Daniel"]
[WhiteFideId "13406809"]
[BlackFideId "1226380"]
[WhiteElo "2311"]
[BlackElo "2649"]
[Result "1/2-1/2"]
[Round "09"]
[TimeControl "180+2"]
[Date "2023.05.31"]
[WhiteClock "0:00:02"]
[BlackClock "0:00:07"]

1. e4 {[%clk 0:03:00]}  c6 {[%clk 0:02:58]} 2. Nc3 {[%clk 0:02:58]}  d5 {[%clk 0:02:59]} 3. d4 {[%clk 0:02:57]}  dxe4 {[%clk 0:02:59]} 4. Nxe4 {[%clk 0:02:58]}  Nf6 {[%clk 0:02:59]} 5. Nxf6+ {[%clk 0:02:57]}  exf6 {[%clk 0:03:00]} 6. c3 {[%clk 0:02:58]}  Bd6 {[%clk 0:03:00]} 7. Bd3 {[%clk 0:02:58]}  Na6 {[%clk 0:03:01]} 8. Ne2 {[%clk 0:02:55]}  Nc7 {[%clk 0:03:01]} 9. O-O {[%clk 0:02:54]}  h5 {[%clk 0:03:01]} 10. Re1 {[%clk 0:02:52]}  Kf8 {[%clk 0:02:50]} 11. c4 {[%clk 0:02:48]}  g6 {[%clk 0:02:34]} 12. Nc3 {[%clk 0:02:42]}  Kg7 {[%clk 0:02:33]} 13. Be3 {[%clk 0:02:38]}  Be6 {[%clk 0:02:23]} 14. Qc2 {[%clk 0:02:30]}  h4 {[%clk 0:02:21]} 15. h3 {[%clk 0:02:30]}  Qd7 {[%clk 0:02:17]} 16. Bf1 {[%clk 0:02:30]}  Bf5 {[%clk 0:02:13]} 17. Qb3 {[%clk 0:02:31]}  Ne6 {[%clk 0:02:11]} 18. Rad1 {[%clk 0:02:30]}  Ng5 {[%clk 0:02:07]} 19. c5 {[%clk 0:02:09]}  Bb8 {[%clk 0:01:09]} 20. d5 {[%clk 0:01:52]}  Nxh3+ {[%clk 0:00:12]} 21. gxh3 {[%clk 0:01:46]}  Bxh3 {[%clk 0:00:13]} 22. Qc4 {[%clk 0:01:35]}  Bxf1 {[%clk 0:00:11]} 23. Rxf1 {[%clk 0:01:29]}  cxd5 {[%clk 0:00:09]} 24. Qxd5 {[%clk 0:01:18]}  Qh3 {[%clk 0:00:05]} 25. Qg2 {[%clk 0:01:17]}  Qf5 {[%clk 0:00:05]} 26. Kh1 {[%clk 0:01:01]}  Be5 {[%clk 0:00:05]} 27. Bd4 {[%clk 0:00:41]}  Bxd4 {[%clk 0:00:04]} 28. Rxd4 {[%clk 0:00:42]}  Rad8 {[%clk 0:00:05]} 29. Rfd1 {[%clk 0:00:33]}  Rxd4 {[%clk 0:00:04]} 30. Rxd4 {[%clk 0:00:34]}  Qxc5 {[%clk 0:00:05]} 31. Qd5 {[%clk 0:00:30]}  Qc7 {[%clk 0:00:04]} 32. Qd6 {[%clk 0:00:20]}  Qc8 {[%clk 0:00:04]} 33. Qd7 {[%clk 0:00:20]}  Qb8 {[%clk 0:00:03]} 34. Rd6 {[%clk 0:00:18]}  h3 {[%clk 0:00:03]} 35. Nd5 {[%clk 0:00:18]}  Re8 {[%clk 0:00:03]} 36. Nxf6 {[%clk 0:00:15]}  Re1+ {[%clk 0:00:03]} 37. Kh2 {[%clk 0:00:15]}  Re6 {[%clk 0:00:04]} 38. Kxh3 {[%clk 0:00:10]}  Rxf6 {[%clk 0:00:04]} 39. Rxf6 {[%clk 0:00:09]}  Kxf6 {[%clk 0:00:05]} 40. Qd4+ {[%clk 0:00:09]}  Qe5 {[%clk 0:00:04]} 41. Qxa7 {[%clk 0:00:08]}  Qxb2 {[%clk 0:00:04]} 42. Kg2 {[%clk 0:00:08]}  Kg7 {[%clk 0:00:05]} 43. a4 {[%clk 0:00:07]}  Qb4 {[%clk 0:00:05]} 44. a5 {[%clk 0:00:07]}  g5 {[%clk 0:00:05]} 45. Kg1 {[%clk 0:00:06]}  g4 {[%clk 0:00:05]} 46. Qb8 {[%clk 0:00:05]}  Qxa5 {[%clk 0:00:05]} 47. Qxb7 {[%clk 0:00:04]}  Qe5 {[%clk 0:00:05]} 48. Qb4 {[%clk 0:00:03]}  f5 {[%clk 0:00:05]} 49. Qb7+ {[%clk 0:00:04]}  Kg6 {[%clk 0:00:06]} 50. Qb1 {[%clk 0:00:04]}  Kg5 {[%clk 0:00:06]} 51. Qc1+ {[%clk 0:00:05]}  Kh5 {[%clk 0:00:05]} 52. Qc8 {[%clk 0:00:04]}  Qe1+ {[%clk 0:00:05]} 53. Kg2 {[%clk 0:00:05]}  Qe4+ {[%clk 0:00:05]} 54. Kg1 {[%clk 0:00:05]}  Qe5 {[%clk 0:00:06]} 55. Qg8 {[%clk 0:00:05]}  Kh4 {[%clk 0:00:05]} 56. Qh7+ {[%clk 0:00:04]}  Kg5 {[%clk 0:00:06]} 57. Qg8+ {[%clk 0:00:05]}  Kf4 {[%clk 0:00:06]} 58. Qc4+ {[%clk 0:00:05]}  Qe4 {[%clk 0:00:05]} 59. Qc7+ {[%clk 0:00:06]}  Kg5 {[%clk 0:00:05]} 60. Qg7+ {[%clk 0:00:06]}  Kh5 {[%clk 0:00:05]} 61. Qh7+ {[%clk 0:00:07]}  Kg5 {[%clk 0:00:05]} 62. Qg7+ {[%clk 0:00:07]}  Kf4 {[%clk 0:00:05]} 63. Qc7+ {[%clk 0:00:07]}  Kf3 {[%clk 0:00:05]} 64. Qc3+ {[%clk 0:00:06]}  Ke2 {[%clk 0:00:06]} 65. Qb2+ {[%clk 0:00:07]}  Kd1 {[%clk 0:00:06]} 66. Qb3+ {[%clk 0:00:06]}  Kd2 {[%clk 0:00:06]} 67. Qb2+ {[%clk 0:00:06]}  Qc2 {[%clk 0:00:06]} 68. Qd4+ {[%clk 0:00:04]}  Ke2 {[%clk 0:00:06]} 69. Qe5+ {[%clk 0:00:03]}  Kd1 {[%clk 0:00:07]} 70. Qa1+ {[%clk 0:00:03]}  Qc1 {[%clk 0:00:07]} 71. Qd4+ {[%clk 0:00:02]}  Ke2+ {[%clk 0:00:07]} 72. Kh2 {[%clk 0:00:02]}  Qc7+ {[%clk 0:00:06]} 73. Kg2 {[%clk 0:00:01]}  Qc6+ {[%clk 0:00:07]} 74. Kg1 {[%clk 0:00:01]}  Qe4 {[%clk 0:00:07]} 75. Qb2+ {[%clk 0:00:01]}  Ke1 {[%clk 0:00:06]} 76. Qc1+ {[%clk 0:00:02]}  Ke2 {[%clk 0:00:07]} 77. Qb2+ {[%clk 0:00:02]} 1/2-1/2


[Site "https://www.chess.com"]

[Event "Titled Tuesday Blitz May 30 Late 2023"]
[White "Vlassov, Nikolai"]
[Black "Halkias, Stelios"]
[WhiteFideId "4103360"]
[BlackFideId "4201809"]
[WhiteElo "2324"]
[BlackElo "2451"]
[Result "0-1"]
[Round "09"]
[TimeControl "180+2"]
[Date "2023.05.31"]
[WhiteClock "0:01:02"]
[BlackClock "0:01:06"]

1. e4 {[%clk 0:03:00]}  e5 {[%clk 0:02:58]} 2. Bc4 {[%clk 0:03:00]}  Nf6 {[%clk 0:02:56]} 3. d3 {[%clk 0:03:00]}  Nc6 {[%clk 0:02:55]} 4. Nf3 {[%clk 0:02:59]}  Bc5 {[%clk 0:02:54]} 5. Bg5 {[%clk 0:02:59]}  h6 {[%clk 0:02:54]} 6. Bh4 {[%clk 0:02:59]}  d6 {[%clk 0:02:54]} 7. Nc3 {[%clk 0:02:59]}  Be6 {[%clk 0:02:44]} 8. Nd2 {[%clk 0:02:58]}  g5 {[%clk 0:02:42]} 9. Bg3 {[%clk 0:02:58]}  Qe7 {[%clk 0:02:39]} 10. Nd5 {[%clk 0:02:54]}  Qd8 {[%clk 0:02:28]} 11. h4 {[%clk 0:02:50]}  g4 {[%clk 0:02:22]} 12. h5 {[%clk 0:02:49]}  Bxd5 {[%clk 0:02:16]} 13. exd5 {[%clk 0:02:49]}  Ne7 {[%clk 0:02:16]} 14. Bh4 {[%clk 0:02:37]}  Nf5 {[%clk 0:02:16]} 15. Bb5+ {[%clk 0:02:30]}  Kf8 {[%clk 0:02:07]} 16. Bxf6 {[%clk 0:02:29]}  Qxf6 {[%clk 0:02:07]} 17. Qxg4 {[%clk 0:02:10]}  Nd4 {[%clk 0:01:25]} 18. Ba4 {[%clk 0:01:57]}  Rg8 {[%clk 0:01:24]} 19. Qh3 {[%clk 0:01:38]}  Nxc2+ {[%clk 0:01:15]} 20. Bxc2 {[%clk 0:01:36]}  Qxf2+ {[%clk 0:01:14]} 21. Kd1 {[%clk 0:01:36]}  Rxg2 {[%clk 0:01:14]} 22. Qxg2 {[%clk 0:01:07]}  Qxg2 {[%clk 0:01:12]} 23. Re1 {[%clk 0:01:02]}  Bb4 {[%clk 0:01:06]} 0-1


[Site "https://www.chess.com"]

[Event "Titled Tuesday Blitz May 30 Late 2023"]
[White "Aldokhin, Ivan"]
[Black "Prohaszka, Peter"]
[WhiteFideId "24115720"]
[BlackFideId "726265"]
[WhiteElo "2322"]
[BlackElo "2626"]
[Result "1-0"]
[Round "09"]
[TimeControl "180+2"]
[Date "2023.05.31"]
[WhiteClock "0:00:05"]
[BlackClock "0:00:03"]

1. e4 {[%clk 0:02:48]}  c6 {[%clk 0:02:56]} 2. Nc3 {[%clk 0:02:47]}  d5 {[%clk 0:02:57]} 3. d4 {[%clk 0:02:47]}  dxe4 {[%clk 0:02:57]} 4. Nxe4 {[%clk 0:02:48]}  Nf6 {[%clk 0:02:58]} 5. Nxf6+ {[%clk 0:02:48]}  exf6 {[%clk 0:02:58]} 6. c3 {[%clk 0:02:48]}  Bd6 {[%clk 0:02:59]} 7. Bd3 {[%clk 0:02:48]}  O-O {[%clk 0:03:00]} 8. Ne2 {[%clk 0:02:48]}  Re8 {[%clk 0:03:01]} 9. Qc2 {[%clk 0:02:48]}  h5 {[%clk 0:03:02]} 10. O-O {[%clk 0:02:47]}  h4 {[%clk 0:03:02]} 11. h3 {[%clk 0:02:43]}  Nd7 {[%clk 0:02:59]} 12. Kh1 {[%clk 0:02:43]}  Nf8 {[%clk 0:02:52]} 13. Ng1 {[%clk 0:02:43]}  Bb8 {[%clk 0:02:36]} 14. f4 {[%clk 0:02:40]}  g6 {[%clk 0:02:30]} 15. Qf2 {[%clk 0:02:24]}  f5 {[%clk 0:02:17]} 16. Nf3 {[%clk 0:02:24]}  Nh7 {[%clk 0:01:58]} 17. Bd2 {[%clk 0:01:58]}  Be6 {[%clk 0:01:58]} 18. Rae1 {[%clk 0:01:45]}  Bd5 {[%clk 0:01:48]} 19. Rxe8+ {[%clk 0:01:25]}  Qxe8 {[%clk 0:01:48]} 20. Qxh4 {[%clk 0:01:25]}  Bxf3 {[%clk 0:01:24]} 21. Rxf3 {[%clk 0:01:21]}  Bd6 {[%clk 0:01:25]} 22. g4 {[%clk 0:01:14]}  Be7 {[%clk 0:00:53]} 23. Qg3 {[%clk 0:01:14]}  fxg4 {[%clk 0:00:46]} 24. hxg4 {[%clk 0:01:14]}  Qd7 {[%clk 0:00:44]} 25. f5 {[%clk 0:01:08]}  Ng5 {[%clk 0:00:25]} 26. Bxg5 {[%clk 0:01:07]}  Bxg5 {[%clk 0:00:26]} 27. fxg6 {[%clk 0:01:07]}  fxg6 {[%clk 0:00:11]} 28. Bxg6 {[%clk 0:01:06]}  Rf8 {[%clk 0:00:11]} 29. Rxf8+ {[%clk 0:00:59]}  Kxf8 {[%clk 0:00:12]} 30. Qf3+ {[%clk 0:00:49]}  Kg7 {[%clk 0:00:12]} 31. Bf5 {[%clk 0:00:47]}  Qe7 {[%clk 0:00:11]} 32. Be4 {[%clk 0:00:44]}  Bc1 {[%clk 0:00:09]} 33. Qf5 {[%clk 0:00:35]}  Qf6 {[%clk 0:00:03]} 34. Qd7+ {[%clk 0:00:26]}  Qf7 {[%clk 0:00:03]} 35. Qxf7+ {[%clk 0:00:18]}  Kxf7 {[%clk 0:00:04]} 36. b3 {[%clk 0:00:15]}  Bb2 {[%clk 0:00:04]} 37. d5 {[%clk 0:00:15]}  Bxc3 {[%clk 0:00:01]} 38. dxc6 {[%clk 0:00:15]}  bxc6 {[%clk 0:00:02]} 39. Bxc6 {[%clk 0:00:15]}  Bb4 {[%clk 0:00:02]} 40. Kg2 {[%clk 0:00:15]}  Kf6 {[%clk 0:00:02]} 41. Kf3 {[%clk 0:00:15]}  Bd2 {[%clk 0:00:02]} 42. Ke4 {[%clk 0:00:15]}  a5 {[%clk 0:00:02]} 43. Kd5 {[%clk 0:00:14]}  Kg5 {[%clk 0:00:02]} 44. Bd7 {[%clk 0:00:14]}  Kf4 {[%clk 0:00:02]} 45. Kc5 {[%clk 0:00:12]}  Bb4+ {[%clk 0:00:03]} 46. Kb5 {[%clk 0:00:11]}  Kg5 {[%clk 0:00:02]} 47. a3 {[%clk 0:00:07]}  Bd2 {[%clk 0:00:02]} 48. b4 {[%clk 0:00:07]}  axb4 {[%clk 0:00:03]} 49. axb4 {[%clk 0:00:07]}  Kf6 {[%clk 0:00:04]} 50. Kc5 {[%clk 0:00:07]}  Ke7 {[%clk 0:00:05]} 51. Bf5 {[%clk 0:00:07]}  Be3+ {[%clk 0:00:01]} 52. Kc6 {[%clk 0:00:07]}  Kd8 {[%clk 0:00:01]} 53. b5 {[%clk 0:00:07]}  Bf4 {[%clk 0:00:01]} 54. b6 {[%clk 0:00:08]}  Be5 {[%clk 0:00:01]} 55. g5 {[%clk 0:00:07]}  Bb8 {[%clk 0:00:01]} 56. g6 {[%clk 0:00:07]}  Ke7 {[%clk 0:00:02]} 57. Kb7 {[%clk 0:00:07]}  Be5 {[%clk 0:00:02]} 58. Kc8 {[%clk 0:00:07]}  Kd6 {[%clk 0:00:02]} 59. b7 {[%clk 0:00:06]}  Ke7 {[%clk 0:00:02]} 60. g7 {[%clk 0:00:06]}  Bxg7 {[%clk 0:00:02]} 61. b8=Q {[%clk 0:00:05]}  Kf8 {[%clk 0:00:03]} 62. Qd6+ {[%clk 0:00:05]}  Kf7 {[%clk 0:00:03]} 63. Bg6+ {[%clk 0:00:04]}  Kg8 {[%clk 0:00:03]} 64. Qe6+ {[%clk 0:00:04]}  Kh8 {[%clk 0:00:03]} 65. Qe8+ {[%clk 0:00:04]}  Bf8 {[%clk 0:00:03]} 66. Qxf8# {[%clk 0:00:05]} 1-0


[Site "https://www.chess.com"]